Cogmind - Beta 13 @@@ ROGUE MODE // 2024.04.07 @ 13:03:43 Player: jihakuz Result: Destroyed by G-47 Trooper with Particle Gun Performance ------------- Evolutions (2) 1000 Regions Visited (4) 800 Robots Destroyed (43) 215 Value Destroyed (1352) 1352 Prototype IDs (2) 40 Alien Tech Used (0) 0 Bonus (0) 0 TOTAL SCORE: 3407 Bonus ------- None Cogmind --------- Core Integrity 0/550 Matter 42/300 Energy 200/200 System Corruption 4% Temperature Cool (19) Movement Core (450) Ox8 Location -8/Materials Parts ------- > --- POWER (2) -------- Subdweller Power Source > --- PROPULSION (3) --- (None) > --- UTILITY (3) ------ Large Storage Unit > --- WEAPON (3) ------- (None) > --- INVENTORY (15) --- Scrap Shield Fragment (47) Peak State ------------ > --- POWER ------------ Light Angular Momentum Engine Light Angular Momentum Engine > --- PROPULSION ------- Aluminum Leg Improved Aluminum Leg Carbon-fiber Leg > --- UTILITY ---------- Advanced Heat Sink Large Storage Unit Structural Scanner > --- WEAPON ----------- Improved Assault Rifle Improved Assault Rifle Improved Assault Rifle > --- INVENTORY -------- Improved Ion Engine Subdweller Power Source Light Treads Subdweller Monowheel Heavy Particle Cannon Battle Rifle Battle Rifle Gauss Rifle Scrap Shield Fragment [Rating: 34] Favorites ----------- Power Light Angular Momentum Engine Engine Light Angular Momentum Engine Power Core Light Nuclear Core Propulsion Aluminum Leg Treads Light Treads Leg Aluminum Leg Wheel Subdweller Monowheel Flight Unit Flight Unit Utility Large Storage Unit Device Structural Scanner Storage Large Storage Unit Protection Light Armor Plating Weapon Improved Assault Rifle Energy Gun Small Laser Energy Cannon Heavy Particle Cannon Ballistic Gun Improved Assault Rifle Launcher Grenade Launcher Build | -11 -10 -10 -10 -8 ------- Run | Yrd Mat Min Sub Mat Slots Evolved 4 | . . . . 4 Power 1 | . . . . 1 Propulsion 1 | . . . . 1 Utility 1 | . . . . 1 Weapon 1 | . . . . 1 Parts Attached 58 | 6 3 9 11 29 Power 11 | 1 . 3 2 5 Engine 8 | 1 . 2 1 4 Core 3 | . . 1 1 1 Reactor . | . . . . . Propulsion 23 | 2 . 4 5 12 Treads 2 | 2 . . . . Leg 14 | . . 4 . 10 Wheel 2 | . . . 1 1 Hover . | . . . . . Flight 5 | . . . 4 1 Utility 7 | 1 2 . . 4 Device 3 | . 1 . . 2 Storage 2 | 1 1 . . . Processor . | . . . . . Hackware . | . . . . . Protection 2 | . . . . 2 Artifact . | . . . . . Weapon 17 | 2 1 2 4 8 Energy Gun 1 | 1 . . . . Energy Cannon 1 | . . . . 1 Ballistic Gun 13 | 1 1 1 3 7 Ballistic Cannon . | . . . . . Launcher 2 | . . 1 1 . Special Weapon . | . . . . . Impact Weapon . | . . . . . Slashing Weapon . | . . . . . Piercing Weapon . | . . . . . Special Melee Weapon . | . . . . . Unidentified Prototypes 2 | . . . . 2 Parts Lost 22 | . . 1 6 15 Power 4 | . . 1 . 3 Propulsion 8 | . . . 4 4 Utility 3 | . . . . 3 Weapon 7 | . . . 2 5 Highest Loss Streak 13 | . . 1 2 13 To Critical Strikes . | . . . . . Average Slot Usage (%) 91 | . 98 97 88 85 Engine 8 | . 14 5 . 13 Core 5 | . . 6 14 3 Treads 7 | . 28 6 . . Leg 11 | . . 21 4 16 Flight 4 | . . . 18 . Device 9 | . 2 14 14 7 Storage 14 | . 24 14 14 9 Protection 2 | . . . . 7 Energy Gun 1 | . 8 . . . Ballistic Gun 22 | . 18 26 21 23 Naked Turns . | . . . . . Heaviest Build 56 | 13 33 29 32 56 Greatest Support 40 | 40 40 40 20 38 Greatest Overweight (x) 17 | . . 1 10 17 Average Overweight (x) 1 | . . . 2 1 Largest Inventory Capacity 15 | 8 15 15 15 15 Average Capacity 14 | 7 14 15 15 15 Most Carried 11 | 6 8 7 9 11 Average Carried 6 | 4 6 5 5 8 Final Capacity 15 | 8 15 15 15 15 Final Carried 7 | 6 5 7 6 1 Class Distribution -------------------- 57% | Mutant 19% | Scavenger-Tank 12% | Scavenger-Mutant 4% | Skirmisher 3% | Scavenger-Skirmisher 3% | Tank Dominant Class ---------------- Mutant | -10/Materials Mutant | -10/Mines Mutant | -10/Subcaves Scavenger-Tank | -8/Materials Resources | -11 -10 -10 -10 -8 ----------- Run | Yrd Mat Min Sub Mat Matter Collected 1091 | 172 126 154 163 476 Remotely . | . . . . . Salvage Created 1494 | . 165 223 227 879 Parts 96 | . 11 21 8 56 Haulers Intercepted . | . . . . . Recyclers Shooed . | . . . . . Parts Field Recycled . | . . . . . Retrieved Matter . | . . . . . Parts Self-Destructed 3 | . . . 3 . Prevented . | . . . . . Kills | -11 -10 -10 -10 -8 ------- Run | Yrd Mat Min Sub Mat Combat Hostiles Destroyed 39 | . 6 10 6 17 Guns 37 | . 6 8 6 17 AOE 2 | . . 2 . . Classes Destroyed 8 | . 2 . 2 4 Worker 1 | . . . . 1 Builder 2 | . . . . 2 Watcher 1 | . . . . 1 Swarmer 12 | . 3 6 . 3 Grunt 18 | . 3 4 1 10 Sentry 4 | . . . 1 3 Hunter 1 | . . . . 1 Subdweller 4 | . . . 4 . Best Kill Streak 5 | . 2 3 2 5 Combat Bots Only 3 | . 2 3 2 3 Max Kills in Single Turn 3 | . 1 3 1 2 Gunslinging . | . . . . . Exploded 2 | . . 2 . . Melee . | . . . . . Uniques/NPCs Destroyed . | . . . . . Combat | -11 -10 -10 -10 -8 -------- Run | Yrd Mat Min Sub Mat Hostile Shots Fired 322 | . 31 57 50 184 Missed 106 | . 11 16 16 63 Damage Taken 3599 | . 166 463 639 2331 Core 768 | . 25 40 150 553 Absorbed by Shields 32 | . . . . 32 Redirected to Shielding 118 | . . . . 118 Core Remaining (%) 57 | 100 . . 14 . Volleys Fired 139 | . 21 25 29 64 Largest 3 | . 2 2 2 3 Hottest 126 | . 60 50 50 126 Shots Fired 308 | . 42 50 44 172 Gun 301 | . 42 49 42 168 Cannon 4 | . . . . 4 Launcher 3 | . . 1 2 . Special . | . . . . . Kinetic 284 | . 25 49 42 168 Thermal 21 | . 17 . . 4 Explosive 3 | . . 1 2 . Electromagnetic . | . . . . . Robot Hit Streak 17 | . 4 12 16 17 Robot Miss Streak 5 | . 5 5 1 4 Penetration Max . | . . . . . Secondary Targets 5 | . 1 . 1 3 Max Gunslinging Chain 1 | . 1 . 1 1 Shots Hit Robots 188 | . 18 28 35 107 Core Hits 93 | . 9 17 18 49 Critical Kills 1 | . . . . 1 Critical Parts Destroyed 1 | . . 1 . . Critical Strikes 2 | . . 1 . 1 Destroy 2 | . . 1 . 1 Melee Attacks . | . . . . . Impact . | . . . . . Slashing . | . . . . . Piercing . | . . . . . Sneak Attacks . | . . . . . Combat Hostiles . | . . . . . Follow-up Attacks . | . . . . . Damage Inflicted 2877 | . 243 392 397 1845 Guns 2458 | . 221 265 336 1636 Cannons 50 | . . . . 50 Explosions 299 | . . 107 61 131 Melee . | . . . . . Ramming 70 | . 22 20 . 28 Kinetic 2405 | . 168 265 336 1636 Thermal 103 | . 53 . . 50 Explosive 168 | . . 107 61 . Electromagnetic 131 | . . . . 131 Impact . | . . . . . Slashing . | . . . . . Piercing . | . . . . . Highest Corruption 4 | . . . . 4 Average Corruption 2 | . . . . 2 Corruption Purged . | . . . . . Corruption Blocked . | . . . . . Effects 14 | . . . . 14 Message Errors 5 | . . . . 5 Matter Fused 2 | . . . . 2 Heat Flow Errors 2 | . . . . 2 Data Loss (minor) 1 | . . . . 1 Misfires 2 | . . . . 2 Weapon Failures 2 | . . . . 2 Overload Shots . | . . . . . Overflow Damage 46 | . . 19 12 15 Projectiles 15 | . . . . 15 Explosions 31 | . . 19 12 . Melee . | . . . . . Knockbacks . | . . . . . Impact . | . . . . . Kinetic . | . . . . . Secondary . | . . . . . Self-Inflicted Damage 90 | . . 31 26 33 Shots 3 | . . 1 1 1 Rammed 9 | . 3 6 . . Targets Rammed 17 | . 3 7 . 7 Kicked 8 | . . 1 . 7 Crushed . | . . . . . Highest Temperature 418 | . 12 24 . 418 Average Temperature 64 | . 9 8 . 77 Received Heat Transfer 1018 | . 24 162 171 661 Effects 4 | . . . . 4 Shutdowns 1 | . . . . 1 Interference 1 | . . . . 1 Damage (major) 2 | . . . . 2 Siege Activations . | . . . . . Robots Corrupted . | . . . . . Combat Hostiles . | . . . . . Parts Fried 1 | . . . . 1 Impact Corruptions . | . . . . . Robots Melted . | . . . . . Combat Hostiles . | . . . . . Parts Melted . | . . . . . Heat Transferred 199 | . 125 . . 74 Parts Sabotaged . | . . . . . Parts Stolen . | . . . . . Parts Stripped . | . . . . . Power Chain Reactions . | . . . . . Alert | -11 -10 -10 -10 -8 ------- Run | Yrd Mat Min Sub Mat Peak Influence 356 | . 135 249 . 356 Initial 13 | . . 13 . . Average 102 | . 39 75 . 164 Maximum Alert Level 1 | . . 1 . 1 Low Security (%) 74 | 100 100 92 . 47 Level 1 25 | . . 7 . 52 Level 2 . | . . . . . Level 3 . | . . . . . Level 4 . | . . . . . Level 5 . | . . . . . High Security . | . . . . . Max Security . | . . . . . Squads Dispatched 5 | . 1 . . 4 Investigation 1 | . . . . 1 Extermination . | . . . . . Reinforcement 4 | . 1 . . 3 Assault . | . . . . . Garrison . | . . . . . Intercept . | . . . . . Searches Triggered . | . . . . . Construction Impeded . | . . . . . Haulers Reinforced . | . . . . . Active Scanning Responses . | . . . . . Cargo Convoy Interrupts . | . . . . . Stealth | -11 -10 -10 -10 -8 --------- Run | Yrd Mat Min Sub Mat Distress Signals 4 | . 1 . . 3 Communications Jammed . | . . . . . Distress Signals . | . . . . . Times Spotted 59 | . 10 10 6 33 Peak Tracking Total 5 | . 3 3 2 5 Tactical Retreats 2 | . . . . 2 Traps | -11 -10 -10 -10 -8 ------- Run | Yrd Mat Min Sub Mat Traps Triggered 2 | . . . . 2 Indirectly . | . . . . . Trap Hack Attempts . | . . . . . Triggered . | . . . . . Disarmed . | . . . . . Reprogrammed . | . . . . . Reused . | . . . . . Traps Extracted . | . . . . . Installed . | . . . . . Triggered . | . . . . . Machines | -11 -10 -10 -10 -8 ---------- Run | Yrd Mat Min Sub Mat Machines Disabled 3 | . . . . 3 Max in Single Turn 1 | . . . . 1 Machines Repaired . | . . . . . Machines Dismantled . | . . . . . Machines Sabotaged . | . . . . . Overloaded Fab Kills . | . . . . . Hacking | -11 -10 -10 -10 -8 --------- Run | Yrd Mat Min Sub Mat Machines Accessed 2 | . 2 . . . Terminals . | . . . . . Fabricators . | . . . . . Repair Stations 1 | . 1 . . . Recycling Units 1 | . 1 . . . Scanalyzers . | . . . . . Garrison Access . | . . . . . Total Hacks 11 | . 11 . . . Successful 9 | . 9 . . . Failed 2 | . 2 . . . Catastrophic . | . . . . . Database Lockouts . | . . . . . Manual . | . . . . . Terminals . | . . . . . Fabricators . | . . . . . Repair Stations 1 | . 1 . . . Recycling Units 10 | . 10 . . . Scanalyzers . | . . . . . Garrison Access . | . . . . . Terminal Hacks . | . . . . . Fabricator Hacks . | . . . . . Repair Station Hacks 1 | . 1 . . . Scan Component 1 | . 1 . . . Recycling Unit Hacks 8 | . 8 . . . Recycle Component 3 | . 3 . . . Process 2 | . 2 . . . Report Inventory 1 | . 1 . . . Retrieve Matter 1 | . 1 . . . Retrieve Components 1 | . 1 . . . Scanalyzer . | . . . . . Garrison Access Hacks . | . . . . . Unauthorized Hacks . | . . . . . Terminals . | . . . . . Fabricators . | . . . . . Repair Stations . | . . . . . Recycling Units . | . . . . . Scanalyzers . | . . . . . Garrison Access . | . . . . . Data Cores Recovered . | . . . . . Used . | . . . . . Hacking Detections . | . . . . . Full Trace Events . | . . . . . Feedback Events . | . . . . . Feedback Blocked . | . . . . . Robot Schematics Acquired . | . . . . . Robots Built . | . . . . . Authchips . | . . . . . Time . | . . . . . Total Robot Build Rating . | . . . . . Part Schematics Acquired . | . . . . . Parts Built . | . . . . . Authchips . | . . . . . Time . | . . . . . Total Part Build Rating . | . . . . . Parts Repaired . | . . . . . Time . | . . . . . Parts Recycled 3 | . 3 . . . Recycled Matter 174 | . 174 . . . Retrieved Matter 174 | . 174 . . . Retrieved Components . | . . . . . Parts Scanalyzed . | . . . . . Part Schematics Acquired . | . . . . . Parts Damaged . | . . . . . Bothacking | -11 -10 -10 -10 -8 ------------ Run | Yrd Mat Min Sub Mat Used RIF Installer . | . . . . . Robots Hacked . | . . . . . Non-combat . | . . . . . Combat . | . . . . . Robot Hacks Applied . | . . . . . Relay Couplers Released . | . . . . . Fabnet Peak Effective % . | . . . . . Robots Rewired . | . . . . . Allies Hacked . | . . . . . Hacks Repelled . | . . . . . Allies | -11 -10 -10 -10 -8 -------- Run | Yrd Mat Min Sub Mat Total Allies . | . . . . . Largest Group . | . . . . . Highest-Rated Group . | . . . . . Highest-Rated Ally . | . . . . . Total Orders . | . . . . . Ally Attacks . | . . . . . Total Damage . | . . . . . Kills . | . . . . . Allies Corrupted . | . . . . . Allies Melted . | . . . . . Intel | -11 -10 -10 -10 -8 ------- Run | Yrd Mat Min Sub Mat Robot Analysis Total . | . . . . . Derelict Logs Recovered 2 | . . 2 . . Drone Launches . | . . . . . Drone Recoveries . | . . . . . Exploration | -11 -10 -10 -10 -8 ------------- Run | Yrd Mat Min Sub Mat Turns Passed 3508 | 115 751 684 722 1236 Spaces Moved 1473 | 65 421 319 271 397 Core 13 | 6 . . 3 4 Treads 559 | 59 421 79 . . Legs 666 | . . 240 47 379 Wheels 42 | . . . 28 14 Hover . | . . . . . Flight 193 | . . . 193 . Fastest Speed 50 | 50 160 160 120 120 Average Speed 200 | 149 160 182 234 240 Slowest Speed 900 | 160 160 190 550 900 Overloaded Moves . | . . . . . Propulsion Burnouts . | . . . . . Robots Hopped . | . . . . . Cave-ins Triggered 1 | . . . . 1 Exploration Rate (%) 34 | 5 47 60 18 40 Regions Visited 4 Branch Regions 2 Pre-discovered Areas . | . . . . . Known Exits Taken . | . . . . . Unknown Exits Taken 4 | 1 1 1 1 . Scrap Searched 2 | . . . 2 . Spaces Dug . | . . . . . Terrain Destroyed 26 | . . 6 18 2 Melee . | . . . . . Projectile 2 | . . . . 2 AOE 24 | . . 6 18 . Terrain Rammed . | . . . . . Walls Destroyed . | . . . . . Machines Disabled . | . . . . . Actions | -11 -10 -10 -10 -8 --------- Run | Yrd Mat Min Sub Mat Total 1770 | 80 456 377 320 537 Wait 10 | 3 4 . . 3 Move 1469 | 64 420 318 270 397 Hop . | . . . . . Pick Up 22 | 7 2 6 3 4 Fast Attach 20 | 5 2 1 2 10 Attach 23 | 1 1 4 6 11 Detach 18 | . 2 4 3 9 Swap 15 | . . 4 3 8 Drop 28 | . 1 8 4 15 Fire 139 | . 21 25 29 64 Melee . | . . . . . Ram . | . . . . . Kick 8 | . . 1 . 7 Crush 9 | . 3 6 . . Escape Stasis . | . . . . . Rewire 9 | . . . . 9 Trap . | . . . . . Miscellaneous . | . . . . . Route ------- -11/Scrapyard -10/Materials (discovered 2 exits: [*Mat] / [*Min]) -10/Mines (discovered 3 exits: [*Mat x2] / [*Sub]) -10/Subcaves -8/Materials (discovered 1 exit: [*Fac]) History --------- Turn | Location | Event 14 | -11/Scrapyard | Discovered new exit (range 14) 116 | -11/Scrapyard | Entered Materials 316 | -10/Materials | Build established: Mutant 467 | -10/Materials | Discovered new exit (range 14) 803 | -10/Materials | Discovered new exit (range 7) 867 | -10/Materials | Entered Mines 877 | -10/Mines | Discovered new exit (range 13) 949 | -10/Mines | Learned Materials terminal intel 993 | -10/Mines | Discovered new exit (range 10) 1357 | -10/Mines | Learned Materials terminal intel 1526 | -10/Mines | Build established: Scavenger-Mutant 1532 | -10/Mines | Discovered new exit (range 9) 1551 | -10/Mines | Entered Subcaves 1783 | -10/Subcaves | Core integrity fell below 50% 1938 | -10/Subcaves | Build established: Mutant 2084 | -10/Subcaves | A swath of the cavern ceiling suddenly collapsed 2220 | -10/Subcaves | Core integrity fell below 20% 2240 | -10/Subcaves | Discovered new exit (range 7) 2273 | -10/Subcaves | Entered Materials 2273 | -8/Materials | Evolved 4 slots: Power x1, Propulsion x1, Utility x1, Weapon x1 2274 | -8/Materials | Loaded intel: 12 terminal locations 3083 | -8/Materials | Build established: Scavenger-Tank 3274 | -8/Materials | Discovered new exit (range 15) 3465 | -8/Materials | Crushed by falling debris 3481 | -8/Materials | Core integrity fell below 50% 3507 | -8/Materials | Core integrity fell below 20% 3509 | -8/Materials | Destroyed by G-47 Trooper with Particle Gun Last Messages --------------- M-13 Machinist repairs Welding Torch. U-05 Engineer builds a Wall. K-01 Serf collects debris. U-05 Engineer builds a Wall. U-05 Engineer destroyed. Penetrated by Slug. K-01 Serf collects debris. U-05 Engineer builds a Wall. M-13 Machinist fits Backup Propulsion I on U-05 Engineer. K-01 Serf collects debris. Sub. Monowheel destroyed. K-01 Serf collects debris. Imp. Assault Rifle destroyed. Battle Rifle destroyed. U-05 Engineer builds a Wall. Imp. Ion Engine destroyed. U-05 Engineer builds a Wall. M-13 Machinist repairs H-61 Shepherd. Critical hit (Burn: +37). Map ----- +----------------------------------------------------+ | ????????????#############????## !## # ?? | | ?????????????????????????????############= # ? | | ?????????????????????????????############ # | | ???????????????????????????????????????## + | | ????????????????????????????"""????????##### # | | ????????????????????????????"T"????????##### # | | ??????????????????????????????????????????## # / | | ????????????????????????????????????????#### ##### | | ????????????????????????????????????????####+##### | | ?????????????????????? ???????????????## | | ????????????????????? ???????????????## | | ?????????????????????# ???????????????## | | ?????????????????????# ???????????????## | | ?????????????????????# ???????????????## | | ?????????????????????# ???????????????## | | ?????????????????????# ???????????????## | | ???????????????#?????# #??????????????## | | ???????????????? ##### #??????????????########## | | ????????????????? *m####???????????########## | | ??????????????????? !H####????????????????????? | | ???????????????????? != !##???????????????????? | | ?????????????????????# u!#???????????????????? | | ?????????????????????# !#???????????????????? | | ???????????######????# !##??????????######### | | ???????????## u #### =% !##??????????# ! | | ????????????# [ g @ !##???????????# | | ????????????# *%= g g% %####????????????# | | ????????????# [ %Y !###?????????????# | | ????????????# ######%##??????????????# * | | ????????????## ?????##%#???????????????# | | ?????????????# ????????# #???????????????# = | | ???????????????????????# #???????????????# | | ???????????????????????# #???????????????#######+# | | ??????????????? ???????# #??????????????????# | | ??????????????? ??????# #??????????????????# | | ?????????????? ?????# #??????????????????# | | ?????????????? ?????# #??????????????????# #### | | ?????????????? #?????# #??????????????????# #??? | | ?????????????? #?????# #??????????????????# #??? | | ?????????????? #?????# ###??##+############ #??? | | ?????????????? #?????# #### #??? | | ?????????????? #?????# % #??? | | ?????????##### #?????#! #??? | | ?????????? #?????# %######## #??? | | ??????????? ??????# """ #??????# #??? | | ???????T???? ?#?? ??# """ #??????# #??? | | ??????????###/#### ?? ?# """ #??????# #??? | | ??????????# ! #""" ?# #??????# #??? | | ??????????# [!#""" # #??????# #??? | | ??????????# ! !#""" # """ #??????# #??? | +----------------------------------------------------+ Best States ------------- Heat Dissipation 50 Energy Generation 31 Energy Capacity 365 Matter Stores 300 Matter Capacity 300 Sight Range 16 Terrain Scan Density 10 Armor Coverage 150 Weapon Shielding 66 Evasion (%) 40 Recoil Reduction 2 Item Schematics ----------------- None Robot Schematics ------------------ None Fabricated ------------ Nothing Alien Tech Used ----------------- None Achievements -------------- None Challenges ------------ None Game ------ Seed ClaymoresSiegeRefractor Manual? 0 Play Time 00:28:11 Cumulative 2.4 hours Start 2024.04.07 @ 12:39:09 End 2024.04.07 @ 13:03:43 Sessions 1 Manual Loads 0 Difficulty Rogue Special Mode None Game No. 5 Rogue 5 Adventurer 0 Explorer 0 Win Type - Total 0 Types 0/0/0/0/0/0/0/0/0 Lore% 0 Gallery% 8 Achievement% 7 Wizard Run 0 Options --------- Layout 1 ASCII 1 Keyboard 1 Movement Vi Keybinds 0 Fullscreen 1 Font 24/Proggy Map View 50x35 Zoom Use 0% Tactical HUD 0 Map Filters NONE Filters NONE Steam 0 RUN: c06675fb-0394-4446-a90d-17efc8eae9d6